fUSD/lending_fUSD_20250923
["ID","MTS","AMOUNT","RATE_DAILY","PERIOD"]
[387223108,1758660647919,-397.86988,0.00023596,7]
[387223111,1758660647929,-397.86988,0.00023596,7]
[387223112,1758660647938,-191.561671,0.00023596,7]
[387223115,1758660647947,-191.561671,0.00023596,7]
[387223117,1758660647957,-191.561671,0.00023596,7]
[387223118,1758660647966,-191.561671,0.00023596,7]
[387223120,1758660647975,-194.055195,0.00023596,7]
[387223122,1758660647985,-151.0,0.00023596,7]
[387223124,1758660647994,-151.0,0.00023596,7]
[387223127,1758660648003,-151.0,0.00023596,7]
[387223129,1758660648013,-151.0,0.00023596,7]
[387223131,1758660648023,-194.055195,0.00023596,7]
[387223133,1758660648032,-151.0,0.00023596,7]
[387223134,1758660648041,-151.0,0.00023596,7]
[387223136,1758660648050,-151.0,0.00023596,7]
[387223138,1758660648060,-194.055195,0.00023596,7]
[387223140,1758660648069,-151.0,0.00023596,7]
[387223142,1758660648079,-151.0,0.00023596,7]
[387223144,1758660648088,-194.055195,0.00023596,7]
[387223147,1758660648098,-151.0,0.00023596,7]
[387223149,1758660648107,-151.0,0.00023596,7]
[387223151,1758660648117,-151.0,0.00023596,7]
[387223153,1758660648127,-151.0,0.00023596,7]
[387223155,1758660648137,-151.0,0.00023596,7]
[387223157,1758660648147,-225.452823,0.00023596,7]
[387223159,1758660648157,-455.1102246,0.00023598,2]
[387223161,1758660648167,-1228.0,0.00023618,2]
[387223163,1758660648181,-151.0,0.00023618,2]
[387223165,1758660648190,-817.0,0.00023618,2]
[387223167,1758660648200,-151.0,0.00023618,2]
[387223169,1758660648209,-817.0,0.00023618,2]
[387223171,1758660648220,-151.0,0.00023618,2]
[387223173,1758660648229,-817.0,0.00023618,2]
[387223175,1758660648242,-151.0,0.00023618,2]
[387223177,1758660648253,-817.0,0.00023618,2]
[387223178,1758660648263,-151.0,0.00023618,2]
[387223179,1758660648272,-547.0,0.00023618,2]
[387223180,1758660648282,-151.0,0.00023618,2]
[387223181,1758660648291,-151.0,0.00023618,2]
[387223182,1758660648301,-151.0,0.00023618,2]
[387223183,1758660648310,-151.0,0.00023618,2]
[387223184,1758660648320,-151.0,0.00023618,2]
[387223185,1758660648329,-151.0,0.00023618,2]
[387223186,1758660648340,-302.0,0.00023618,2]
[387223188,1758660648350,-167.31,0.00023635,2]
[387223190,1758660648359,-150.0,0.00023635,2]
[387223192,1758660648369,-150.0,0.00023645,4]
[387223194,1758660648378,-150.0,0.00023645,4]
[387223195,1758660648387,-150.0,0.00023645,4]
[387223196,1758660648396,-466.68663118,0.00023713,2]
[387223197,1758660648406,-2005.4484898,0.00023737,2]
[387223198,1758660648415,-150.0,0.0002375,4]
[387223199,1758660648425,-168.0,0.00023751,2]
[387223200,1758660648434,-4487.77258949,0.00023767,2]
[387223201,1758660648443,-195.59,0.00023778,2]
[387223202,1758660648453,-4562.51081821,0.00023791,2]
[387223203,1758660648462,-1447.48818103,0.000238,2]
[387223204,1758660648472,-7000.0,0.000238,2]
[387223205,1758660648481,-150.0,0.00023809,4]
[387223206,1758660648490,-150.0,0.00023809,4]
[387223207,1758660648500,-150.0,0.00023809,4]
[387223208,1758660648510,-150.0,0.00023809,4]
[387223209,1758660648519,-231.37,0.00023816,2]
[387223210,1758660648529,-1500.0,0.00023829,2]
[387223211,1758660648538,-472.08794461,0.00023829,2]
[387223212,1758660648548,-444.0,0.00023847,2]
[387223213,1758660648557,-177.0,0.00023853,2]
[387223214,1758660648566,-2100.0,0.000239,8]
[387223215,1758660648575,-150.0,0.00023926,4]
[387223216,1758660648584,-194.38,0.00023944,2]
[387223217,1758660648595,-177.0,0.0002395,2]
[387223218,1758660648604,-185.09,0.00023954,2]
[387223219,1758660648614,-2786.0844,0.00023968,2]
[387223220,1758660648624,-3821.70603166,0.00024,2]
[387223221,1758660648634,-150.0,0.00024014,4]
[387223222,1758660648643,-150.0,0.00024014,4]
[387223223,1758660648654,-455.1102246,0.00024032,2]
[387223224,1758660648664,-2525.037,0.00024044,5]
[387223225,1758660648674,-4487.77258949,0.00024078,2]
[387223226,1758660648683,-150.0,0.00024083,4]
[387223227,1758660648693,-150.0,0.00024102,4]
[387223228,1758660648702,-4562.51081821,0.00024119,2]
[387223229,1758660648712,-150.0,0.00024138,4]
[387223230,1758660648721,-150.0,0.00024138,4]
[387223231,1758660648731,-150.0,0.00024138,4]
[387223232,1758660648741,-166.0,0.00024164,7]
[387223233,1758660648751,-334.5472959,0.0002417,2]
[387223234,1758660648760,-1000.44,0.00024171,2]
[387223235,1758660648770,-150.0,0.0002422,4]
[387223236,1758660648780,-150.0,0.0002422,4]
[387223237,1758660648790,-168.14,0.00024225,2]
[387223238,1758660648800,-200.0,0.00024231,2]
[387223239,1758660648810,-168.23,0.00024248,2]
[387223240,1758660648819,-1425.0,0.00024256,2]
[387223241,1758660648829,-150.0,0.00024278,4]
[387223242,1758660648840,-869.0,0.0002428,2]
[387223243,1758660648850,-827.84201489,0.0002431,2]
[387223244,1758660648859,-413.02445618,0.00024313,2]
[387223245,1758660648869,-353.82977235,0.00024318,2]
[387223246,1758660648879,-3978.32246794,0.00024318,2]
[387223247,1758660648888,-2386.03911715,0.00024318,2]
[387223248,1758660648898,-3721.82826824,0.00024319,2]
[387223249,1758660648908,-353.82977234,0.00024322,2]
[387223250,1758660648917,-2386.03911715,0.00024322,2]
[387223251,1758660648927,-3978.32246794,0.00024322,2]
[387223252,1758660648937,-24149.16089988,0.00024323,2]
[387223253,1758660648947,-353.82977234,0.00024324,2]
[387223254,1758660648956,-199.43489566,0.00024328,2]
[387223255,1758660648966,-152.0,0.00024333,4]
[387223256,1758660648976,-413.92100746,0.00024334,2]
[387223257,1758660648986,-413.02445618,0.0002434,2]
[387223258,1758660648995,-413.92100746,0.0002434,2]
[387223259,1758660649005,-353.82977234,0.0002434,2]
[387223260,1758660649014,-24149.16089988,0.0002434,2]
[387223261,1758660649024,-2386.03911715,0.00024343,2]
[387223262,1758660649034,-353.82977234,0.00024343,2]
[387223263,1758660649043,-3721.82826824,0.00024348,2]
[387223264,1758660649053,-1000.0,0.0002435,2]
[387223265,1758660649064,-1000.0,0.0002435,2]
[387223266,1758660649074,-1000.0,0.0002435,2]
[387223267,1758660649083,-1000.0,0.0002435,2]
[387223268,1758660649096,-1000.5097,0.0002435,2]
[387223269,1758660649106,-353.82977235,0.00024354,2]
[387223270,1758660649116,-150.0,0.00024356,4]
[387223271,1758660649126,-298.91588394,0.00024358,2]
[387223272,1758660649137,-353.82977234,0.00024359,2]
[387223273,1758660649147,-24149.16089988,0.00024359,2]
[387223274,1758660649157,-199.43489566,0.00024365,2]
[387223275,1758660649167,-3721.82826824,0.00024367,2]
[387223276,1758660649180,-827.84201489,0.00024369,2]
[387223277,1758660649190,-3978.32246794,0.0002437,2]
[387223278,1758660649199,-413.02445618,0.00024371,2]
[387223279,1758660649209,-353.82977235,0.00024373,2]
[387223280,1758660649221,-2386.03911715,0.00024373,2]
[387223281,1758660649231,-216.54229184,0.00024375,2]
[387223282,1758660649242,-1008.36059818,0.00024377,2]
[387223283,1758660649253,-199.43489566,0.00024381,2]
[387223284,1758660649262,-300.0,0.00024384,2]
[387223285,1758660649272,-4487.77258949,0.00024389,2]
[387223286,1758660649282,-353.82977234,0.00024391,2]
[387223287,1758660649291,-413.02445618,0.00024394,2]
[387223288,1758660649301,-353.82977234,0.00024396,2]
[387223289,1758660649312,-353.82977234,0.00024398,2]
[387223290,1758660649322,-216.54229184,0.00024399,2]
[387223291,1758660649331,-295166.71837822,0.000244,2]
[387223292,1758660649341,-827.84201489,0.000244,2]
[387223293,1758660649350,-413.02445618,0.00024402,2]
[387223294,1758660649360,-3978.32246794,0.00024402,2]
[387223295,1758660649370,-303.6707651,0.00024409,2]
[387223296,1758660649380,-298.91588394,0.0002441,2]
[387223297,1758660649389,-413.92100746,0.00024412,2]
[387223298,1758660649399,-413.02445618,0.00024413,2]
[387223299,1758660649409,-353.82977234,0.00024413,2]
[387223300,1758660649419,-298.91588394,0.00024416,2]
[387223301,1758660649428,-3721.82826824,0.00024417,2]
[387223302,1758660649439,-216.54229184,0.00024418,2]
[387223303,1758660649448,-827.84201489,0.00024419,2]
[387223304,1758660649458,-199.43489566,0.0002442,2]
[387223305,1758660649468,-827.84201489,0.00024421,2]
[387223306,1758660649478,-413.02445618,0.00024422,2]
[387223307,1758660649488,-199.43489566,0.00024423,2]
[387223308,1758660649497,-298.91588394,0.00024423,2]
[387223309,1758660649507,-24149.16089988,0.00024424,2]
[387223310,1758660649516,-295166.71837822,0.00024425,2]
[387223311,1758660649526,-353.82977234,0.00024425,2]
[387223312,1758660649536,-413.92100746,0.00024426,2]
[387223313,1758660649546,-3978.32246794,0.00024427,2]
[387223314,1758660649556,-827.84201489,0.00024427,2]
[387223315,1758660649566,-413.02445618,0.00024428,2]
[387223316,1758660649576,-295166.71837822,0.00024428,2]
[387223317,1758660649586,-295166.71837822,0.00024429,2]
[387223318,1758660649597,-3721.82826824,0.0002443,2]
[387223319,1758660649607,-413.02445618,0.00024431,2]
[387223320,1758660649617,-199.43489566,0.00024432,2]
[387223321,1758660649627,-295166.71837822,0.00024432,2]
[387223322,1758660649637,-295166.71837822,0.00024433,2]
[387223323,1758660649648,-2386.03911715,0.00024433,2]
[387223324,1758660649657,-298.91588394,0.00024434,2]
[387223325,1758660649667,-353.82977234,0.00024438,2]
[387223326,1758660649677,-413.02445618,0.00024438,2]
[387223327,1758660649687,-216.54229184,0.0002444,2]
[387223328,1758660649697,-353.82977235,0.0002444,2]
[387223329,1758660649707,-2386.03911715,0.00024442,2]
[387223330,1758660649717,-353.82977234,0.00024444,2]
[387223331,1758660649727,-413.92100746,0.00024444,2]
[387223332,1758660649737,-4562.51081821,0.00024448,2]
[387223333,1758660649746,-178666.48530805,0.00024449,2]
[387223334,1758660650903,-7512.21157319,0.00024449,2]
[387223335,1758660650951,-263.456908,0.00023596,7]
[387223336,1758660650960,-856.231092,0.00024449,2]
[387223337,1758660652147,-718.17229109,0.00021657,2]
[387223338,1758660652156,-485070.73993383,0.00021896,2]
[387223339,1758660652166,-750.12,0.00022,2]
[387223340,1758660652179,-263.456908,0.00022,7]
[387223341,1758660652189,-263.456908,0.00022,7]
[387223342,1758660652198,-151.0,0.00022,7]
[387223343,1758660652208,-263.456908,0.00022,7]
[387223344,1758660652218,-151.0,0.00022,7]
[387223345,1758660652227,-263.456908,0.00022,7]
[387223346,1758660652236,-263.456908,0.00023152,7]
[387223347,1758660652245,-5014.27452,0.000234,30]
[387223348,1758660652256,-750.12,0.00023596,2]
[387223349,1758660652265,-263.456908,0.00023596,7]
[387223350,1758660652274,-108131.79040498,0.00024449,2]
[387223351,1758660652283,-353.82977235,0.00024449,2]
[387223352,1758660652292,-3721.82826824,0.00024449,2]
[387223353,1758660652302,-199.43489566,0.00024449,2]
[387223354,1758660652311,-1193.88,0.00024452,2]
[387223355,1758660652320,-167.36,0.00024452,2]
[387223356,1758660652329,-150.0,0.00024454,2]
[387223357,1758660652338,-150.0,0.00024454,4]
[387223358,1758660652348,-171.59276964,0.00024455,2]
[387223359,1758660652360,-23977.56813024,0.00024455,2]
[387223360,1758660652369,-413.02445618,0.00024455,2]
[387223361,1758660652379,-413.92100746,0.00024457,2]
[387223362,1758660652387,-55609.94199147,0.00024457,2]
[387223363,1758660652397,-17720.49683903,0.00024457,2]
[387223364,1758660652407,-68000.62495462,0.00024457,2]
[387223365,1758660652417,-49063.59356431,0.00024457,2]
[387223366,1758660652427,-85786.19764766,0.00024457,2]
[387223367,1758660652478,-151.0,0.00023152,7]
[387223368,1758660652487,-9698.8682,0.00024457,2]
[387223369,1758660653950,-263.456908,0.00022,7]
[387223370,1758660653960,-263.456908,0.00022,7]
[387223371,1758660653969,-263.456908,0.00023152,7]
[387223372,1758660653978,-263.456908,0.00023152,7]
[387223373,1758660653987,-151.0,0.00023596,7]
[387223374,1758660653997,-263.456908,0.00023596,7]
[387223375,1758660654006,-263.456908,0.00023596,7]
[387223376,1758660654015,-173.7594264,0.00024457,2]
[387223377,1758660654040,-13879.91080001,0.00024457,2]
[387223378,1758660654051,-698.37965128,0.00024457,2]
[387223379,1758660654105,-21546.98931339,0.00024457,2]
[387223380,1758660654187,-634.35353271,0.00024457,2]
[387223381,1758660654200,-3049.21041741,0.00024457,2]
[387223382,1758660654233,-7968.8251397,0.00024457,2]
[387223383,1758660654245,-12054.7929284,0.00024457,2]
[387223384,1758660654259,-5975.28635241,0.00024457,2]
[387223385,1758660654448,2322.47947,0.000221,30]
[387223386,1758660690944,500.0,0.0001851,2]
[387223387,1758660826934,500.0,0.0001851,2]
[387223388,1758660896625,154.12,0.00010127,2]
[387223391,1758661619927,-162.67817003,0.0002,2]
[387223392,1758661622737,-182.91470835,0.0002,2]
[387223393,1758661626525,-154.40712162,0.0002,2]
[387223412,1758661831928,-167.21004782,0.0002,2]
[387223414,1758661831938,-626.77,0.00020255,2]
[387223416,1758661831948,-1000.0,0.00020255,2]
[387223418,1758661831958,-151.0,0.00020344,2]
[387223419,1758661831967,-151.0,0.00020344,2]
[387223420,1758661831977,-151.0,0.00020413,2]
[387223421,1758661831987,-151.0,0.00020466,2]
[387223422,1758661831997,-151.0,0.00020466,2]
[387223424,1758661832006,-300.0,0.00020949,2]
[387223426,1758661832016,-276.0,0.00020949,2]
[387223428,1758661832026,-147.10095218,0.00020949,2]
[387223432,1758661832137,-359.229993,0.00020949,2]
[387223433,1758661832150,-693.66905482,0.00020949,2]
[387223434,1758661832160,-300.0,0.00020949,2]
[387223435,1758661832169,-8523.0,0.0002095,2]
[387223436,1758661832178,-304.59,0.0002095,2]
[387223437,1758661832188,-3735.88,0.0002095,2]
[387223438,1758661832198,-150.99,0.0002095,2]
[387223439,1758661832207,-9999.99,0.0002095,2]
[387223440,1758661832216,-516.64379166,0.00021415,2]
[387223441,1758661832225,-2397.32,0.00021415,2]
[387223442,1758661832234,-999.99,0.00021415,2]
[387223443,1758661832243,-803.14,0.00021415,2]
[387223444,1758661832253,-1301.28,0.00021417,2]
[387223445,1758661832263,-150.0,0.00021494,2]
[387223446,1758661832273,-1339.07,0.00021494,2]
[387223447,1758661832282,-1000.0,0.0002151,2]
[387223448,1758661832293,-150.0,0.00021528,7]
[387223449,1758661832303,-168.6,0.00021589,2]
[387223450,1758661832313,-170.485,0.00021589,2]
[387223451,1758661832324,-1100.0,0.00021633,2]
[387223452,1758661832333,-1041.89,0.00021633,2]
[387223453,1758661832342,-282.91820487,0.00021634,2]
[387223454,1758661832352,-176.03199283,0.00021634,2]
[387223455,1758661832363,-500.0,0.00021634,2]
[387223457,1758661832372,-500.0,0.00021634,2]
[387223459,1758661832382,-500.0,0.00021634,2]
[387223461,1758661832391,-500.0,0.00021634,2]
[387223463,1758661832400,-500.0,0.00021634,2]
[387223465,1758661832409,-500.0,0.00021634,2]
[387223467,1758661832418,-500.0,0.00021634,2]
[387223469,1758661832427,-500.0,0.00021634,2]
[387223471,1758661832437,-500.0,0.00021634,2]
[387223473,1758661832446,-500.0,0.00021634,2]
[387223475,1758661832455,-500.0,0.00021634,2]
[387223477,1758661832465,-500.0,0.00021634,2]
[387223479,1758661832474,-500.0,0.00021634,2]
[387223481,1758661832483,-500.0,0.00021634,2]
[387223483,1758661832493,-500.0,0.00021634,2]
[387223485,1758661832502,-500.0,0.00021634,2]
[387223487,1758661832511,-500.0,0.00021634,2]
[387223489,1758661832520,-500.0,0.00021634,2]
[387223491,1758661832530,-597.4802163,0.00021634,2]
[387223493,1758661832539,-500.0,0.00021634,2]
[387223495,1758661832548,-500.0,0.00021634,2]
[387223497,1758661832558,-500.0,0.00021634,2]
[387223499,1758661832567,-500.0,0.00021634,2]
[387223501,1758661832581,-500.0,0.00021634,2]
[387223503,1758661832590,-500.0,0.00021634,2]
[387223505,1758661832599,-500.0,0.00021634,2]
[387223507,1758661832609,-500.0,0.00021634,2]
[387223509,1758661832621,-500.0,0.00021634,2]
[387223511,1758661832630,-500.0,0.00021634,2]
[387223513,1758661832640,-500.0,0.00021634,2]
[387223515,1758661832654,-500.0,0.00021634,2]
[387223517,1758661832664,-500.0,0.00021634,2]
[387223519,1758661832675,-500.0,0.00021634,2]
[387223521,1758661832685,-500.0,0.00021634,2]
[387223523,1758661832697,-500.0,0.00021634,2]
[387223525,1758661832706,-500.0,0.00021634,2]
[387223527,1758661832717,-500.0,0.00021634,2]
[387223529,1758661832726,-500.0,0.00021634,2]
[387223531,1758661832736,-500.0,0.00021634,2]
[387223533,1758661832745,-500.0,0.00021634,2]
[387223535,1758661832755,-227.32194671,0.00021634,2]
[387223537,1758661832764,-500.0,0.00021634,2]
[387223539,1758661832773,-500.0,0.00021634,2]
[387223541,1758661832783,-500.0,0.00021634,2]
[387223543,1758661832792,-500.0,0.00021634,2]
[387223545,1758661832802,-500.0,0.00021634,2]
[387223547,1758661832811,-500.0,0.00021634,2]
[387223549,1758661832821,-500.0,0.00021634,2]
[387223551,1758661832830,-500.0,0.00021634,2]
[387223553,1758661832839,-500.0,0.00021634,2]
[387223555,1758661832848,-9587.65144298,0.00021635,2]
[387223557,1758661832858,-198.77,0.00021699,2]
[387223559,1758661832868,-24505.36797139,0.00021943,2]
[387223561,1758661832877,-5000.0,0.00021953,2]
[387223563,1758661832887,-250.0,0.00021953,2]
[387223565,1758661832896,-200.0,0.00021987,2]
[387223567,1758661832906,-151.0,0.00021987,2]
[387223569,1758661832915,-151.0,0.00021987,2]
[387223571,1758661832924,-151.0,0.00021987,2]
[387223573,1758661832934,-151.0,0.00021987,2]
[387223575,1758661832944,-151.0,0.00021987,2]
[387223577,1758661832953,-151.0,0.00021987,2]
[387223579,1758661832963,-151.0,0.00021987,2]
[387223581,1758661832972,-151.0,0.00021987,2]
[387223583,1758661832982,-151.0,0.00021987,2]
[387223585,1758661832991,-151.0,0.00021987,2]
[387223587,1758661833001,-151.0,0.00021987,2]
[387223589,1758661833010,-151.0,0.00021987,2]
[387223591,1758661833020,-151.0,0.00021987,2]
[387223593,1758661833029,-151.0,0.00021987,2]
[387223595,1758661833039,-151.0,0.00021987,2]
[387223597,1758661833049,-151.0,0.00021987,2]
[387223599,1758661833062,-93.08486017,0.00021987,2]
[387223602,1758661833075,-57.91513983,0.00021987,2]
[387223604,1758661833085,-151.0,0.00021987,2]
[387223606,1758661833095,-151.0,0.00021987,2]
[387223608,1758661833104,-264.31908678,0.00021987,2]
[387223610,1758661833114,-151.0,0.00021987,2]
[387223612,1758661833124,-151.0,0.00021987,2]
[387223614,1758661833133,-151.0,0.00021987,2]
[387223616,1758661833143,-151.0,0.00021987,2]
[387223618,1758661833152,-500.0,0.00021987,2]
[387223620,1758661833162,-151.0,0.00021987,2]
[387223622,1758661833172,-500.0,0.00021987,2]
[387223624,1758661833181,-500.0,0.00021987,2]
[387223626,1758661833191,-500.0,0.00021987,2]
[387223628,1758661833200,-500.0,0.00021987,2]
[387223630,1758661833209,-500.0,0.00021987,2]
[387223632,1758661833219,-500.0,0.00021987,2]
[387223634,1758661833228,-500.0,0.00021987,2]
[387223636,1758661833238,-151.0,0.00021987,2]
[387223638,1758661833247,-500.0,0.00021987,2]
[387223640,1758661833257,-151.0,0.00021987,2]
[387223642,1758661833266,-500.0,0.00021987,2]
[387223644,1758661833277,-151.0,0.00021987,2]
[387223646,1758661833287,-500.0,0.00021987,2]
[387223648,1758661833297,-151.0,0.00021987,2]
[387223650,1758661833306,-151.0,0.00021987,2]
[387223652,1758661833315,-151.0,0.00021987,2]
[387223654,1758661833326,-151.0,0.00021987,2]
[387223656,1758661833336,-151.0,0.00021987,2]
[387223658,1758661833345,-151.0,0.00021987,2]
[387223660,1758661833354,-151.0,0.00021987,2]
[387223662,1758661833363,-151.0,0.00021987,2]
[387223664,1758661833372,-200.0,0.00021987,2]
[387223666,1758661833382,-151.0,0.00021987,2]
[387223668,1758661833391,-151.0,0.00021987,2]
[387223671,1758661833411,-500.0,0.00021987,2]
[387223673,1758661833421,-500.0,0.00021987,2]
[387223675,1758661833432,-500.0,0.00021987,2]
[387223676,1758661833441,-500.0,0.00021987,2]
[387223679,1758661833452,-500.0,0.00021987,2]
[387223680,1758661833462,-321.04118707,0.00021987,2]
[387223681,1758661833472,-583.43,0.00022,2]
[387223682,1758661833482,-163.48,0.00022,2]
[387223683,1758661833492,-150.0,0.00022,2]
[387223684,1758661833503,-4106.25973647,0.0002201,2]
[387223685,1758661833515,-169.36,0.0002206,2]
[387223686,1758661833526,-772.04869071,0.00022082,2]
[387223687,1758661833538,-158.4,0.00022113,2]
[387223688,1758661833549,-150.0,0.00022167,4]
[387223689,1758661833560,-150.0,0.00022167,4]
[387223690,1758661833572,-150.0,0.00022167,4]
[387223691,1758661833587,-150.0,0.00022167,4]
[387223692,1758661833598,-150.0,0.00022167,4]
[387223693,1758661833608,-150.0,0.00022167,4]
[387223694,1758661833619,-150.0,0.00022167,4]
[387223695,1758661833629,-150.0,0.00022167,4]
[387223696,1758661833640,-152.49015848,0.00022167,4]
[387223697,1758661833651,-150.0,0.00022167,4]
[387223698,1758661833663,-150.0,0.00022167,4]
[387223699,1758661833674,-150.0,0.00022167,4]
[387223700,1758661833684,-150.0,0.00022167,4]
[387223701,1758661833695,-150.0,0.00022167,4]
[387223702,1758661833705,-150.0,0.00022321,4]
[387223703,1758661833715,-4106.25973638,0.00022323,2]
[387223704,1758661833725,-150.0,0.00022364,2]
[387223705,1758661833735,-150.0,0.00022413,4]
[387223706,1758661833745,-150.0,0.00022475,4]
[387223707,1758661833755,-128.17513753,0.00022475,4]
[387223708,1758661833769,-21.82486247,0.00022475,4]
[387223709,1758661833780,-150.0,0.00022475,4]
[387223710,1758661833795,-1301.28,0.00022488,2]
[387223711,1758661833806,-2000.0,0.000225,2]
[387223712,1758661833817,-1500.0,0.00022519,2]
[387223713,1758661833828,-200.0,0.00022535,2]
[387223714,1758661833839,-200.0,0.00022535,2]
[387223715,1758661833850,-855.0,0.00022541,2]
[387223716,1758661833861,-150.0,0.00022578,4]
[387223717,1758661833872,-150.0,0.00022578,4]
[387223718,1758661833883,-150.0,0.00022578,4]
[387223719,1758661833894,-150.0,0.00022629,4]
[387223720,1758661833905,-4106.25973638,0.00022637,2]
[387223721,1758661833915,-150.0,0.0002266,4]
[387223722,1758661833926,-150.0,0.0002266,4]
[387223723,1758661833937,-150.0,0.0002266,4]
[387223724,1758661833950,-1000.0,0.000227,2]
[387223725,1758661833963,-150.0,0.00022783,4]
[387223726,1758661833974,-150.0,0.00022783,4]
[387223727,1758661833985,-150.0,0.00022783,4]
[387223728,1758661833995,-420.0,0.00022789,2]
[387223729,1758661834006,-1200.0,0.00022897,2]
[387223730,1758661834017,-700.0,0.000229,8]
[387223731,1758661834028,-150.0,0.00022906,4]
[387223732,1758661834039,-150.0,0.00022937,4]
[387223733,1758661834049,-4106.25973638,0.0002295,2]
[387223734,1758661834060,-2.94935449,0.00022986,2]
[387223735,1758661834074,-210.05064551,0.00022986,2]
[387223736,1758661834086,-150.0,0.00022988,4]
[387223737,1758661834096,-150.0,0.00022988,4]
[387223738,1758661834107,-150.0,0.00022988,4]
[387223739,1758661834117,-150.0,0.00022988,4]
[387223740,1758661834128,-225.0,0.00022998,2]
[387223741,1758661834139,-44.30969,0.00023052,2]
[387223742,1758661834176,-955.69031,0.00023052,2]
[387223743,1758661834194,-663.57490602,0.00023079,2]
[387223744,1758661834213,-63.43478398,0.00023081,2]
[387223745,1758661834226,-621.0144873,0.00023081,2]
[387223746,1758661834237,-215.2855127,0.00023082,2]
[387223747,1758661834290,-3823.70981785,0.00023082,2]
[387223748,1758661834300,-371.1898885,0.00023082,2]
[387223749,1758661834311,-150.0,0.00023091,4]
[387223750,1758661834322,-150.0,0.00023091,4]
[387223751,1758661834332,-150.0,0.00023091,4]
[387223752,1758661834343,-727.0,0.00023112,2]
[387223753,1758661834355,-18887.0,0.00023112,2]
[387223754,1758661834366,-915.808,0.00023112,2]
[387223755,1758661834377,-4229.0,0.00023112,2]
[387223756,1758661834388,-4177.0,0.00023112,2]
[387223757,1758661834399,-4523.0,0.00023112,2]
[387223758,1758661834409,-1179.0,0.00023112,2]
[387223759,1758661834421,-3082.0,0.00023112,2]
[387223760,1758661834431,-150.0,0.00023152,4]
[387223761,1758661834442,-150.0,0.00023152,4]
[387223762,1758661834453,-150.0,0.00023152,4]
[387223763,1758661834464,-3007.82875494,0.00023153,2]
[387223764,1758661834474,-257.56651002,0.00023153,2]
[387223765,1758661834484,-151.0,0.00023153,2]
[387223766,1758661834494,-500.0,0.00023153,2]
[387223767,1758661834506,-151.0,0.00023153,2]
[387223768,1758661834516,-500.0,0.00023153,2]
[387223769,1758661834527,-500.0,0.00023153,2]
[387223770,1758661834537,-500.0,0.00023153,2]
[387223771,1758661834548,-500.0,0.00023153,2]
[387223772,1758661834558,-500.0,0.00023153,2]
[387223773,1758661834569,-151.0,0.00023153,2]
[387223774,1758661834582,-269.54820062,0.00023153,2]
[387223775,1758661834597,-322.6107,0.00023153,2]
[387223776,1758661834608,-311.24013731,0.00023153,2]
[387223777,1758661834620,-500.0,0.00023153,2]
[387223778,1758661834631,-500.0,0.00023153,2]
[387223779,1758661834641,-500.0,0.00023153,2]
[387223780,1758661834653,-500.0,0.00023153,2]
[387223781,1758661834663,-500.0,0.00023153,2]
[387223782,1758661834674,-500.0,0.00023153,2]
[387223783,1758661834685,-200.0,0.00023153,2]
[387223784,1758661834695,-200.0,0.00023153,2]
[387223785,1758661834706,-200.0,0.00023153,2]
[387223786,1758661834718,-202.0,0.00023153,2]
[387223787,1758661834728,-160.0,0.00023153,2]
[387223788,1758661834739,-1861.51052034,0.00023153,2]